fUSD/lending_fUSD_20240517
["ID","MTS","AMOUNT","RATE_DAILY","PERIOD"]
[327294482,1715969449473,-1783.42,0.00012797,2]
[327294483,1715969449483,-500.0,0.00012797,2]
[327294484,1715969449493,-500.0,0.00012797,2]
[327294485,1715969449502,-500.0,0.00012797,2]
[327294486,1715969449511,-500.0,0.00012797,2]
[327294487,1715969449522,-500.0,0.00012797,2]
[327294488,1715969449532,-500.0,0.00012797,2]
[327294489,1715969449541,-500.0,0.00012797,2]
[327294490,1715969449551,-627.8,0.00012797,2]
[327294491,1715969449563,-2580.75,0.00012797,2]
[327294492,1715969449573,-2580.75,0.00012797,2]
[327294493,1715969449583,-968.83,0.00012797,2]
[327294494,1715969449592,-968.83,0.00012797,2]
[327294495,1715969449602,-4895.0,0.00012797,2]
[327294496,1715969449611,-405.76816591,0.00012798,2]
[327294497,1715969449621,-155.0,0.00012798,2]
[327294498,1715969449630,-1380.16157324,0.00012798,2]
[327294499,1715969449639,-155.0,0.00012798,2]
[327294500,1715969449650,-204.78018268,0.00012798,2]
[327294501,1715969449659,-782.22141752,0.00012798,2]
[327294502,1715969449669,-430.25757045,0.00012798,2]
[327294503,1715969449679,-155.0,0.00012798,2]
[327294504,1715969449688,-288.88329302,0.00012798,2]
[327294505,1715969449698,-3007.03887667,0.00012798,2]
[327294506,1715969449707,-274.02420754,0.00012798,2]
[327294507,1715969449717,-2005.85931335,0.00012798,2]
[327294508,1715969449726,-699.41070565,0.00012798,2]
[327294509,1715969449735,-3280.62102371,0.00012798,2]
[327294510,1715969449745,-208.30272338,0.00012798,2]
[327294511,1715969449755,-305.64014606,0.00012798,2]
[327294512,1715969449764,-788.48029707,0.00012798,2]
[327294513,1715969449774,-289.90594162,0.00012798,2]
[327294514,1715969449784,-157.98514558,0.00012798,2]
[327294515,1715969449793,-237.03062149,0.00012798,2]
[327294516,1715969449802,-4737.626702,0.00012798,2]
[327294517,1715969449811,-290.02669929,0.00012798,2]
[327294518,1715969449821,-326.51563459,0.00012798,2]
[327294519,1715969449830,-167.65434555,0.00012798,2]
[327294520,1715969449840,-343.99922863,0.00012798,2]
[327294521,1715969449850,-326.36335566,0.00012798,2]
[327294522,1715969449860,-186.12897839,0.00012798,2]
[327294523,1715969449870,-684.85937217,0.00012798,2]
[327294524,1715969449879,-535.07006962,0.00012798,2]
[327294525,1715969449889,-200.69504957,0.00012798,2]
[327294526,1715969449898,-2101.80773139,0.00012798,2]
[327294527,1715969449908,-706.56200578,0.00012798,2]
[327294528,1715969449917,-236.10440833,0.00012798,2]
[327294529,1715969449929,-155.0,0.00012798,2]
[327294530,1715969449939,-776.05395473,0.00012798,2]
[327294531,1715969449948,-155.0,0.00012798,2]
[327294532,1715969449958,-377.57527955,0.00012798,2]
[327294533,1715969449968,-160.0001,0.00012798,2]
[327294534,1715969449977,-155.41401368,0.00012798,2]
[327294535,1715969449988,-155.0,0.00012798,2]
[327294536,1715969449998,-155.44437483,0.00012798,2]
[327294537,1715969450008,-294.01632487,0.00012798,2]
[327294538,1715969450018,-155.30435758,0.00012798,2]
[327294539,1715969450028,-335.92803474,0.00012798,2]
[327294540,1715969450038,-4426.48350078,0.00012798,2]
[327294541,1715969450048,-188.11068688,0.00012798,2]
[327294542,1715969450058,-968.61235952,0.00012798,2]
[327294543,1715969450068,-207.05672543,0.00012798,2]
[327294544,1715969450078,-2324.60160796,0.00012798,2]
[327294545,1715969450087,-155.0,0.00012798,2]
[327294546,1715969450098,-4274.39929361,0.00012798,2]
[327294547,1715969450108,-155.0,0.00012798,2]
[327294548,1715969450118,-155.91456879,0.00012798,2]
[327294549,1715969450127,-151.0,0.00012798,2]
[327294550,1715969450137,-765.450737,0.00012798,2]
[327294551,1715969450147,-500.0,0.00012798,2]
[327294552,1715969450157,-151.0,0.00012798,2]
[327294553,1715969450167,-555.5166128,0.00012798,2]
[327294554,1715969450179,-151.0,0.00012798,2]
[327294555,1715969450188,-151.0,0.00012798,2]
[327294556,1715969450199,-3000.0,0.00012798,2]
[327294557,1715969450210,-151.0,0.00012798,2]
[327294558,1715969450219,-500.0,0.00012798,2]
[327294559,1715969450229,-151.0,0.00012798,2]
[327294560,1715969450239,-151.0,0.00012798,2]
[327294561,1715969450248,-332.65776285,0.00012798,2]
[327294562,1715969450259,-500.0,0.00012798,2]
[327294563,1715969450268,-560.840487,0.00012798,2]
[327294564,1715969450278,-560.840487,0.00012798,2]
[327294565,1715969450288,-253.776587,0.00012798,2]
[327294566,1715969450298,-253.776587,0.00012798,2]
[327294567,1715969450308,-202.0,0.00012798,2]
[327294568,1715969450318,-563.911056,0.00012798,2]
[327294569,1715969450328,-563.911056,0.00012798,2]
[327294570,1715969450338,-151.0,0.00012798,2]
[327294571,1715969450348,-151.0,0.00012798,2]
[327294572,1715969450358,-151.0,0.00012798,2]
[327294573,1715969450367,-151.0,0.00012798,2]
[327294574,1715969450378,-151.0,0.00012798,2]
[327294575,1715969450388,-151.0,0.00012798,2]
[327294576,1715969450397,-500.0,0.00012798,2]
[327294577,1715969450407,-1441.33,0.00012798,2]
[327294578,1715969450417,-151.0,0.00012798,2]
[327294579,1715969450429,-1727.802977,0.00012798,2]
[327294580,1715969450438,-500.0,0.00012798,2]
[327294581,1715969450448,-1727.802977,0.00012798,2]
[327294582,1715969450458,-713.38,0.00012798,2]
[327294583,1715969450469,-1733.83,0.00012798,2]
[327294584,1715969450480,-1783.42,0.00012798,2]
[327294585,1715969450494,-558.05909295,0.00012798,2]
[327294586,1715969450660,-500.0,0.00012798,2]
[327294587,1715969450671,-2580.75,0.00012798,2]
[327294588,1715969450683,-968.83,0.00012798,2]
[327294589,1715969450692,-207.58542229,0.00012799,2]
[327294590,1715969450702,-5867.46418463,0.00012799,2]
[327294591,1715969450712,-445.96288343,0.00012799,2]
[327294592,1715969450721,-463.58299468,0.00012799,2]
[327294593,1715969450732,-500.18746504,0.00012799,2]
[327294594,1715969450742,-548.36139996,0.00012799,2]
[327294595,1715969450752,-500.0,0.00012799,2]
[327294596,1715969450762,-500.0,0.00012799,2]
[327294597,1715969450771,-508.21471,0.00012799,2]
[327294598,1715969450782,-500.0,0.00012799,2]
[327294599,1715969450792,-403.66263472,0.00012799,2]
[327294600,1715969450803,-500.0,0.00012799,2]
[327294601,1715969450813,-519.00959426,0.00012799,2]
[327294602,1715969450823,-534.92679159,0.00012799,2]
[327294603,1715969450834,-501.38195943,0.00012799,2]
[327294604,1715969450843,-500.0,0.00012799,2]
[327294605,1715969450853,-506.64143328,0.00012799,2]
[327294606,1715969450864,-507.05161213,0.00012799,2]
[327294607,1715969450874,-467.0377804,0.00012799,2]
[327294608,1715969450884,-500.0,0.00012799,2]
[327294609,1715969450896,-503.20161709,0.00012799,2]
[327294610,1715969450906,-632.52,0.00012799,2]
[327294611,1715969450917,-500.0,0.00012799,2]
[327294612,1715969450930,-645.65,0.00012799,2]
[327294613,1715969450942,-647.43133925,0.00012799,2]
[327294614,1715969450952,-381.8,0.00012799,2]
[327294615,1715969450961,-500.0,0.00012799,2]
[327294616,1715969450971,-535.03171485,0.00012799,2]
[327294617,1715969450980,-500.0,0.00012799,2]
[327294618,1715969450991,-500.79483261,0.00012799,2]
[327294619,1715969451001,-523.26579376,0.00012799,2]
[327294620,1715969451010,-500.0,0.00012799,2]
[327294621,1715969451021,-528.03823604,0.00012799,2]
[327294622,1715969451030,-500.0,0.00012799,2]
[327294623,1715969451039,-500.0,0.00012799,2]
[327294624,1715969451049,-500.0,0.00012799,2]
[327294625,1715969451059,-500.0,0.00012799,2]
[327294626,1715969451069,-510.32233856,0.00012799,2]
[327294627,1715969451078,-501.68608915,0.00012799,2]
[327294628,1715969451088,-500.0,0.00012799,2]
[327294629,1715969451098,-506.00895819,0.00012799,2]
[327294630,1715969451107,-500.0,0.00012799,2]
[327294631,1715969451117,-500.0,0.00012799,2]
[327294632,1715969451127,-500.0,0.00012799,2]
[327294633,1715969451136,-204.64150175,0.00012799,2]
[327294634,1715969451146,-500.0,0.00012799,2]
[327294635,1715969451155,-500.0,0.00012799,2]
[327294636,1715969451164,-500.0,0.00012799,2]
[327294637,1715969451174,-500.0,0.00012799,2]
[327294638,1715969451184,-500.0,0.00012799,2]
[327294639,1715969451194,-500.0,0.00012799,2]
[327294640,1715969451204,-565.40164173,0.00012799,2]
[327294641,1715969451213,-500.0,0.00012799,2]
[327294642,1715969451223,-500.0,0.00012799,2]
[327294643,1715969451232,-500.0,0.00012799,2]
[327294644,1715969451242,-500.0,0.00012799,2]
[327294645,1715969451251,-500.0,0.00012799,2]
[327294646,1715969451261,-500.0,0.00012799,2]
[327294647,1715969451271,-505.12950175,0.00012799,2]
[327294648,1715969451280,-500.0,0.00012799,2]
[327294649,1715969451290,-151.56324146,0.00012799,2]
[327294650,1715969451299,-631.14,0.00012799,2]
[327294651,1715969451309,-501.23757639,0.00012799,2]
[327294652,1715969451319,-500.0,0.00012799,2]
[327294653,1715969451328,-500.0,0.00012799,2]
[327294654,1715969451337,-446.3284007,0.00012799,2]
[327294655,1715969451347,-500.0,0.00012799,2]
[327294656,1715969451356,-550.27041644,0.00012799,2]
[327294657,1715969451365,-209.85,0.00012799,2]
[327294658,1715969451375,-500.0,0.00012799,2]
[327294659,1715969451384,-287.94,0.00012799,2]
[327294660,1715969451396,-500.0,0.00012799,2]
[327294661,1715969451405,-500.0,0.00012799,2]
[327294662,1715969451416,-344.67963136,0.00012799,2]
[327294663,1715969451429,-269.89166684,0.00012799,2]
[327294664,1715969451440,-500.0,0.00012799,2]
[327294665,1715969451449,-519.17024328,0.00012799,2]
[327294666,1715969451459,-500.0,0.00012799,2]
[327294667,1715969451471,-500.0,0.00012799,2]
[327294668,1715969451486,-500.0,0.00012799,2]
[327294669,1715969451495,-500.0,0.00012799,2]
[327294670,1715969451505,-500.0,0.00012799,2]
[327294671,1715969451515,-500.0,0.00012799,2]
[327294672,1715969451527,-500.0,0.00012799,2]
[327294673,1715969451538,-500.0,0.00012799,2]
[327294674,1715969451547,-500.0,0.00012799,2]
[327294675,1715969451556,-500.0,0.00012799,2]
[327294676,1715969451566,-500.0,0.00012799,2]
[327294677,1715969451575,-500.0,0.00012799,2]
[327294678,1715969451585,-166.29502854,0.00012799,2]
[327294679,1715969451595,-364.65615017,0.00012799,2]
[327294680,1715969451604,-500.0,0.00012799,2]
[327294681,1715969451614,-444.98438706,0.00012799,2]
[327294682,1715969451623,-500.0,0.00012799,2]
[327294683,1715969451633,-500.0,0.00012799,2]
[327294684,1715969451643,-500.0,0.00012799,2]
[327294685,1715969451652,-186.96,0.00012799,2]
[327294686,1715969451662,-500.0,0.00012799,2]
[327294687,1715969451671,-500.0,0.00012799,2]
[327294688,1715969451686,-500.0,0.00012799,2]
[327294689,1715969451695,-500.0,0.00012799,2]
[327294690,1715969451705,-500.0,0.00012799,2]
[327294691,1715969451714,-500.0,0.00012799,2]
[327294692,1715969451723,-500.0,0.00012799,2]
[327294693,1715969451732,-500.0,0.00012799,2]
[327294694,1715969451741,-500.0,0.00012799,2]
[327294695,1715969451750,-500.0,0.00012799,2]
[327294696,1715969451759,-500.0,0.00012799,2]
[327294697,1715969451768,-500.0,0.00012799,2]
[327294698,1715969451777,-500.0,0.00012799,2]
[327294699,1715969451788,-278.22124218,0.00012799,2]
[327294700,1715969451798,-500.0,0.00012799,2]
[327294701,1715969451807,-500.0,0.00012799,2]
[327294702,1715969451817,-500.0,0.00012799,2]
[327294703,1715969451826,-500.0,0.00012799,2]
[327294704,1715969451836,-500.0,0.00012799,2]
[327294705,1715969451846,-500.0,0.00012799,2]
[327294706,1715969451856,-500.0,0.00012799,2]
[327294707,1715969451865,-500.0,0.00012799,2]
[327294708,1715969451875,-500.0,0.00012799,2]
[327294709,1715969451886,-500.0,0.00012799,2]
[327294710,1715969451896,-246.33551186,0.00012799,2]
[327294711,1715969451906,-219.081233,0.00012799,2]
[327294712,1715969451915,-219.081233,0.00012799,2]
[327294713,1715969451924,-500.0,0.00012799,2]
[327294714,1715969451937,-500.0,0.00012799,2]
[327294715,1715969451946,-548.97128521,0.00012799,2]
[327294716,1715969451956,-161.623208,0.00012799,2]
[327294717,1715969451966,-1441.33,0.00012799,2]
[327294718,1715969451976,-1441.33,0.00012799,2]
[327294719,1715969451986,-1441.33,0.00012799,2]
[327294720,1715969451996,-1441.33,0.00012799,2]
[327294721,1715969452005,-1441.33,0.00012799,2]
[327294722,1715969452015,-1441.33,0.00012799,2]
[327294723,1715969452024,-1441.33,0.00012799,2]
[327294724,1715969452033,-1441.33,0.00012799,2]
[327294725,1715969452043,-1441.33,0.00012799,2]
[327294726,1715969452053,-1441.33,0.00012799,2]
[327294727,1715969452063,-1441.33,0.00012799,2]
[327294728,1715969452072,-1441.33,0.00012799,2]
[327294729,1715969452082,-1441.46281186,0.00012799,2]
[327294730,1715969452091,-2973.684982,0.00012799,2]
[327294731,1715969452100,-2973.684982,0.00012799,2]
[327294732,1715969452110,-500.0,0.00012799,2]
[327294733,1715969452119,-500.0,0.00012799,2]
[327294734,1715969452128,-500.0,0.00012799,2]
[327294735,1715969452137,-500.0,0.00012799,2]
[327294736,1715969452147,-500.0,0.00012799,2]
[327294737,1715969452156,-488.06,0.00012799,2]
[327294738,1715969452165,-1733.83,0.00012799,2]
[327294739,1715969452177,-713.38,0.00012799,2]
[327294740,1715969452187,-713.38,0.00012799,2]
[327294741,1715969452196,-713.38,0.00012799,2]
[327294742,1715969452205,-713.38,0.00012799,2]
[327294743,1715969452215,-713.38,0.00012799,2]
[327294744,1715969452224,-713.38,0.00012799,2]
[327294745,1715969452233,-713.38,0.00012799,2]
[327294746,1715969452243,-1733.83,0.00012799,2]
[327294747,1715969452253,-1733.83,0.00012799,2]
[327294748,1715969452262,-3249.690046,0.00012799,2]
[327294749,1715969452271,-713.38,0.00012799,2]
[327294750,1715969452280,-1733.83,0.00012799,2]
[327294751,1715969452290,-1733.83,0.00012799,2]
[327294752,1715969452299,-1733.83,0.00012799,2]
[327294753,1715969452308,-246.985208,0.00012799,2]
[327294754,1715969452318,-1733.83,0.00012799,2]
[327294755,1715969452328,-1733.97,0.00012799,2]
[327294756,1715969452337,-163.267617,0.00012799,2]
[327294757,1715969452347,-246.985208,0.00012799,2]
[327294758,1715969452356,-3249.690046,0.00012799,2]
[327294759,1715969452366,-163.267617,0.00012799,2]
[327294760,1715969452375,-289.889808,0.00012799,2]
[327294761,1715969452385,-289.889808,0.00012799,2]
[327294762,1715969452393,-1783.42,0.00012799,2]
[327294763,1715969452403,-1783.42,0.00012799,2]
[327294764,1715969452412,-1783.42,0.00012799,2]
[327294765,1715969452421,-1783.42,0.00012799,2]
[327294766,1715969452431,-1783.42,0.00012799,2]
[327294767,1715969452440,-1783.42,0.00012799,2]
[327294768,1715969452450,-1783.42,0.00012799,2]
[327294769,1715969452459,-1783.54,0.00012799,2]
[327294770,1715969452469,-151.0,0.00012799,2]
[327294771,1715969452478,-151.0,0.00012799,2]
[327294772,1715969452491,-240.797916,0.00012799,2]
[327294773,1715969452500,-240.797916,0.00012799,2]
[327294774,1715969452509,-151.0,0.00012799,2]
[327294775,1715969452519,-185.689765,0.00012799,2]
[327294776,1715969452529,-185.689765,0.00012799,2]
[327294777,1715969452538,-543.92,0.00012799,2]
[327294778,1715969452547,-151.0,0.00012799,2]
[327294779,1715969452556,-340.630876,0.00012799,2]
[327294780,1715969452569,-340.630876,0.00012799,2]
[327294781,1715969452579,-2580.75,0.00012799,2]
[327294782,1715969452588,-2580.75,0.00012799,2]
[327294783,1715969452598,-2580.75,0.00012799,2]
[327294784,1715969452607,-2580.75,0.00012799,2]
[327294785,1715969452617,-2580.75,0.00012799,2]
[327294786,1715969452626,-2580.75,0.00012799,2]
[327294787,1715969452635,-2580.75,0.00012799,2]
[327294788,1715969452644,-2580.95749401,0.00012799,2]
[327294789,1715969452654,-356.190336,0.00012799,2]
[327294790,1715969452663,-356.190336,0.00012799,2]
[327294791,1715969452672,-258.53191,0.00012799,2]
[327294792,1715969452684,-258.53191,0.00012799,2]
[327294793,1715969452693,-232.671246,0.00012799,2]
[327294794,1715969452703,-232.671246,0.00012799,2]
[327294795,1715969452712,-153.701402,0.00012799,2]
[327294796,1715969452721,-968.83,0.00012799,2]
[327294797,1715969452730,-968.83,0.00012799,2]
[327294798,1715969452739,-968.83,0.00012799,2]
[327294799,1715969452748,-968.83,0.00012799,2]
[327294800,1715969452758,-968.83,0.00012799,2]
[327294801,1715969452767,-968.83,0.00012799,2]
[327294802,1715969452778,-968.83,0.00012799,2]
[327294803,1715969452787,-969.03734568,0.00012799,2]
[327294804,1715969452797,-3655.096,0.000128,2]
[327294805,1715969452806,-1856205.14498485,0.000128,2]
[327294806,1715969452816,-319.96651189,0.000128,2]
[327294807,1715969452825,-200.0,0.000128,2]
[327294808,1715969452835,-151.0,0.000128,2]
[327294809,1715969452844,-151.0,0.000128,2]
[327294810,1715969452853,-153.545952,0.000128,2]
[327294811,1715969452863,-151.0,0.000128,2]
[327294812,1715969452872,-151.0,0.000128,2]
[327294813,1715969452881,-8864.880763,0.000128,2]
[327294814,1715969452891,-14283.3585739,0.000128,2]
[327294815,1715969452899,-151.0,0.000128,2]
[327294816,1715969452909,-151.0,0.000128,2]
[327294817,1715969452918,-1890.8763784,0.000128,2]
[327294818,1715969452928,-278.54746,0.000128,2]
[327294819,1715969452937,-151.0,0.000128,2]
[327294820,1715969452946,-273.353561,0.000128,2]
[327294821,1715969452956,-2000.0,0.000128,2]
[327294822,1715969452965,-200.0,0.000128,2]
[327294823,1715969453017,-102214.591319,0.000128,2]
[327294824,1715969453027,-765.450737,0.000128,2]
[327294825,1715969453037,-765.450737,0.000128,2]
[327294826,1715969453047,-2921.4468528,0.000128,2]
[327294827,1715969453056,-151.0,0.000128,2]
[327294828,1715969453065,-151.0,0.000128,2]
[327294829,1715969453074,-151.0,0.000128,2]
[327294830,1715969453082,-176.549873,0.000128,2]
[327294831,1715969453091,-151.0,0.000128,2]
[327294832,1715969453100,-151.0,0.000128,2]
[327294833,1715969453110,-6324.1001635,0.000128,2]
[327294834,1715969453119,-151.0,0.000128,2]
[327294835,1715969453127,-203.033234,0.000128,2]
[327294836,1715969453136,-151.0,0.000128,2]
[327294837,1715969453145,-560.840487,0.000128,2]
[327294838,1715969453155,-560.840487,0.000128,2]
[327294839,1715969453164,-253.776587,0.000128,2]
[327294840,1715969453173,-253.776587,0.000128,2]
[327294841,1715969453187,-563.911056,0.000128,2]
[327294842,1715969453196,-563.911056,0.000128,2]
[327294843,1715969453206,-151.0,0.000128,2]
[327294844,1715969453216,-237.720751,0.000128,2]
[327294845,1715969453226,-151.0,0.000128,2]
[327294846,1715969453235,-151.0,0.000128,2]
[327294847,1715969453244,-183.125235,0.000128,2]
[327294848,1715969453254,-1000.0,0.000128,2]
[327294849,1715969453263,-179.443217,0.000128,2]
[327294850,1715969453272,-219.081233,0.000128,2]
[327294851,1715969453281,-219.081233,0.000128,2]
[327294852,1715969453291,-2973.684982,0.000128,2]
[327294853,1715969453301,-2973.684982,0.000128,2]
[327294854,1715969453311,-151.0,0.000128,2]
[327294855,1715969453321,-1727.802977,0.000128,2]
[327294856,1715969453331,-1727.802977,0.000128,2]
[327294857,1715969453340,-3249.690046,0.000128,2]
[327294858,1715969453349,-246.985208,0.000128,2]
[327294859,1715969453359,-163.267617,0.000128,2]
[327294860,1715969453369,-246.985208,0.000128,2]
[327294861,1715969453379,-3249.690046,0.000128,2]
[327294862,1715969453389,-163.267617,0.000128,2]
[327294863,1715969453400,-289.889808,0.000128,2]
[327294864,1715969453412,-289.889808,0.000128,2]
[327294865,1715969453422,-151.0,0.000128,2]
[327294866,1715969453433,-151.0,0.000128,2]
[327294867,1715969453442,-240.797916,0.000128,2]
[327294868,1715969453451,-240.797916,0.000128,2]
[327294869,1715969453460,-151.0,0.000128,2]
[327294870,1715969453470,-185.689765,0.000128,2]
[327294871,1715969453484,-3000.0,0.000128,2]
[327294872,1715969453495,-185.689765,0.000128,2]
[327294873,1715969453504,-151.0,0.000128,2]
[327294874,1715969453515,-340.630876,0.000128,2]
[327294875,1715969453524,-340.630876,0.000128,2]
[327294876,1715969453533,-356.190336,0.000128,2]
[327294877,1715969453544,-356.190336,0.000128,2]
[327294878,1715969453557,-258.53191,0.000128,2]
[327294879,1715969453568,-258.53191,0.000128,2]
[327294880,1715969453579,-232.671246,0.000128,2]
[327294881,1715969453588,-232.671246,0.000128,2]
[327294882,1715969453600,-1180.63172484,0.00012829,2]
[327294883,1715969453610,-319.96651189,0.0001285,2]
[327294884,1715969453620,-177.2,0.00012878,2]
[327294885,1715969453632,-500.0,0.00012879,2]
[327294886,1715969453644,-269252.05023841,0.0001288,2]
[327294887,1715969453653,-151.0,0.0001288,2]
[327294888,1715969453664,-151.0,0.0001288,2]
[327294889,1715969453673,-151.0,0.0001288,2]
[327294890,1715969453684,-151.0,0.0001288,2]
[327294891,1715969453693,-151.0,0.0001288,2]
[327294892,1715969453702,-151.0,0.0001288,2]
[327294893,1715969453713,-765.450737,0.0001288,2]
[327294894,1715969453722,-151.0,0.0001288,2]
[327294895,1715969453732,-151.0,0.0001288,2]
[327294896,1715969453742,-151.0,0.0001288,2]
[327294897,1715969453751,-151.0,0.0001288,2]
[327294898,1715969453760,-560.840487,0.0001288,2]
[327294899,1715969453770,-560.840487,0.0001288,2]
[327294900,1715969453781,-253.776587,0.0001288,2]
[327294901,1715969453791,-253.776587,0.0001288,2]
[327294902,1715969453801,-563.911056,0.0001288,2]
[327294903,1715969453810,-563.911056,0.0001288,2]
[327294904,1715969453819,-151.0,0.0001288,2]
[327294905,1715969453828,-151.0,0.0001288,2]
[327294906,1715969453837,-151.0,0.0001288,2]
[327294907,1715969453847,-219.081233,0.0001288,2]
[327294908,1715969453856,-219.081233,0.0001288,2]
[327294909,1715969453865,-2973.684982,0.0001288,2]
[327294910,1715969453874,-2973.684982,0.0001288,2]
[327294911,1715969453883,-151.0,0.0001288,2]
[327294912,1715969453892,-1727.802977,0.0001288,2]
[327294913,1715969453901,-1727.802977,0.0001288,2]
[327294914,1715969453911,-3249.690046,0.0001288,2]
[327294915,1715969453919,-246.985208,0.0001288,2]
[327294916,1715969453930,-163.267617,0.0001288,2]
[327294917,1715969453939,-246.985208,0.0001288,2]
[327294918,1715969453948,-3249.690046,0.0001288,2]
[327294919,1715969453957,-163.267617,0.0001288,2]
[327294920,1715969453967,-289.889808,0.0001288,2]
[327294921,1715969453977,-289.889808,0.0001288,2]
[327294922,1715969453986,-151.0,0.0001288,2]
[327294923,1715969453995,-151.0,0.0001288,2]
[327294924,1715969454005,-240.797916,0.0001288,2]
[327294925,1715969454014,-240.797916,0.0001288,2]
[327294926,1715969454024,-151.0,0.0001288,2]
[327294927,1715969454035,-185.689765,0.0001288,2]
[327294928,1715969454044,-185.689765,0.0001288,2]
[327294929,1715969454053,-151.0,0.0001288,2]
[327294930,1715969454063,-340.630876,0.0001288,2]
[327294931,1715969454072,-340.630876,0.0001288,2]
[327294932,1715969454081,-356.190336,0.0001288,2]
[327294933,1715969454091,-356.190336,0.0001288,2]
[327294934,1715969454101,-258.53191,0.0001288,2]
[327294935,1715969454110,-258.53191,0.0001288,2]
[327294936,1715969454119,-232.671246,0.0001288,2]
[327294937,1715969454129,-232.671246,0.0001288,2]
[327294938,1715969454138,-2227.36783504,0.000129,2]
[327294939,1715969454148,-10000.0,0.000129,2]
[327294940,1715969454157,-319.96651189,0.000129,2]
[327294941,1715969454167,-229.215054,0.000129,2]
[327294942,1715969454177,-151.0,0.000129,2]
[327294943,1715969454186,-14834.88552207,0.000129,2]
[327294944,1715969454196,-178.96058678,0.000129,2]
[327294945,1715969454206,-3294.53419364,0.000129,2]
[327294946,1715969454215,-182.11918499,0.000129,2]
[327294947,1715969454224,-12440.14178564,0.000129,2]
[327294948,1715969454233,-150.0,0.00012903,2]
[327294949,1715969454243,-245.836,0.00012903,2]
[327294950,1715969454252,-2159.0,0.00012903,2]
[327294951,1715969454261,-1020.295,0.00012903,2]
[327294952,1715969454270,-186.41634,0.00012926,2]
[327294953,1715969454280,-169.616618,0.00012926,2]
[327294954,1715969454289,-154.757108,0.00012926,2]
[327294955,1715969454298,-169.616618,0.00012926,2]
[327294956,1715969454307,-154.757108,0.00012926,2]
[327294957,1715969454316,-150.270517,0.00012926,2]
[327294958,1715969454325,-207.309201,0.00012926,2]
[327294959,1715969454335,-583.498302,0.00012926,2]
[327294960,1715969454344,-2586.880595,0.00012926,2]
[327294961,1715969454354,-1253.161162,0.00012926,2]
[327294962,1715969454363,-583.498303,0.00012926,2]
[327294963,1715969454371,-2586.880595,0.00012926,2]
[327294964,1715969454381,-210.552651,0.00012926,2]
[327294965,1715969454390,-195.018286,0.00012926,2]
[327294966,1715969454399,-311.592009,0.00012926,2]
[327294967,1715969454408,-2625.742362,0.00012926,2]
[327294968,1715969454417,-154.757108,0.00012926,2]
[327294969,1715969454427,-10231.390668,0.00012926,2]
[327294970,1715969454437,-4337.129288,0.00012926,2]
[327294971,1715969454446,-875.247454,0.00012926,2]
[327294972,1715969454455,-200.0,0.00012928,2]
[327294973,1715969454464,-166.902637,0.00012931,2]
[327294974,1715969454477,-249.434297,0.00012931,2]
[327294975,1715969454487,-162.816812,0.00012931,2]
[327294976,1715969454497,-176.933466,0.00012931,2]
[327294977,1715969454506,-500.0,0.00012949,2]
[327294978,1715969454515,-500.0,0.00012949,2]
[327294979,1715969454525,-500.0,0.00012949,2]
[327294980,1715969454534,-364999.71488659,0.0001295,6]
[327294981,1715969454544,-151.0,0.0001295,2]